fUSD/lending_fUSD_20250930
["ID","MTS","AMOUNT","RATE_DAILY","PERIOD"]
[388499401,1759218651290,-370.99715647,0.00018193,2]
[388499402,1759218651303,-1139.3,0.00018193,2]
[388499403,1759218651314,-302.0,0.00018193,2]
[388499404,1759218651326,-332.4,0.00018193,2]
[388499405,1759218651337,-459.62,0.00018193,2]
[388499406,1759218651352,-560.55,0.00018193,2]
[388499407,1759218651365,-2152.0854395,0.00018193,2]
[388499408,1759218651374,-2031.27450636,0.00018226,2]
[388499409,1759218651387,-2203.72549364,0.00018226,2]
[388499410,1759218651396,-302.84212282,0.000199,2]
[388499411,1759218651406,-404.72904168,0.0002,2]
[388499412,1759218651419,-314.43560951,0.0002,2]
[388499413,1759218651431,-1144.1002012,0.0002,2]
[388499414,1759218651443,-348.87976258,0.0002,2]
[388499415,1759218651454,-44880.11922932,0.0002,2]
[388499416,1759218651466,-16090.38742371,0.0002,2]
[388499417,1759218651477,-7390.02435629,0.0002,2]
[388499418,1759218651490,-8958.34363501,0.0002,2]
[388499419,1759218651502,-1142.09325268,0.0002,2]
[388499459,1759218745565,-4254.0,0.000171,5]
[388499460,1759218745597,-323.73789831,0.00017373,2]
[388499461,1759218745635,-323.73789831,0.00017381,2]
[388499462,1759218745667,-323.73789831,0.00017445,2]
[388499463,1759218745697,-323.73789831,0.00017454,2]
[388499464,1759218745728,-323.73789831,0.00017455,2]
[388499465,1759218745759,-323.73789831,0.0001746,2]
[388499466,1759218745789,-323.73789831,0.00017475,2]
[388499467,1759218745924,-4254.0,0.00017591,2]
[388499468,1759218745940,-323.73789831,0.00017591,2]
[388499469,1759218745956,-323.73789831,0.00017591,2]
[388499470,1759218745968,-323.73789831,0.00017591,2]
[388499471,1759218745980,-323.73789831,0.00017591,2]
[388499472,1759218745995,-323.73789831,0.00017591,2]
[388499473,1759218746006,-323.73789831,0.00017591,2]
[388499474,1759218746021,-323.73789831,0.00017591,2]
[388499475,1759218746037,-6174.70120249,0.00017591,2]
[388499905,1759219487404,151.26,9.238e-05,2]
[388500077,1759219832250,-250.0,0.00017,2]
[388500078,1759219832260,-183.47766598,0.00017391,2]
[388500079,1759219832269,-300.0,0.00017402,2]
[388500080,1759219832278,-322.419,0.00017403,2]
[388500081,1759219832288,-765.36863775,0.00017491,2]
[388500082,1759219832302,-151.0,0.0001758,2]
[388500083,1759219832311,-151.0,0.0001758,2]
[388500084,1759219832320,-151.0,0.0001758,2]
[388500085,1759219832329,-151.0,0.0001758,2]
[388500086,1759219832338,-151.0,0.0001758,2]
[388500087,1759219832347,-151.0,0.0001758,2]
[388500088,1759219832356,-151.0,0.0001758,2]
[388500089,1759219832365,-151.0,0.0001758,2]
[388500090,1759219832375,-151.0,0.0001758,2]
[388500091,1759219832384,-151.0,0.0001758,2]
[388500092,1759219832396,-151.0,0.0001758,2]
[388500093,1759219832405,-151.0,0.0001758,2]
[388500094,1759219832415,-151.0,0.0001758,2]
[388500095,1759219832429,-137.00021357,0.0001758,2]
[388500096,1759219832441,-13.99978643,0.0001758,2]
[388500097,1759219832451,-151.0,0.0001758,2]
[388500098,1759219832461,-151.0,0.0001758,2]
[388500099,1759219832471,-151.0,0.0001758,2]
[388500100,1759219832480,-3.87864196,0.0001758,2]
[388500101,1759219832491,-147.12135804,0.0001758,2]
[388500102,1759219832503,-151.0,0.0001758,2]
[388500103,1759219832513,-151.0,0.0001758,2]
[388500104,1759219832523,-17459.09603043,0.00017591,2]
[388500105,1759219832534,-1884.19087891,0.00017591,2]
[388500106,1759219832543,-1000.0,0.00017974,2]
[388500107,1759219832553,-1000.0,0.00017975,2]
[388500108,1759219832562,-1000.0,0.00017975,2]
[388500109,1759219832571,-7965.41053268,0.00017975,2]
[388500110,1759219832581,-500.0,0.00017975,2]
[388500111,1759219832590,-231.28369723,0.00017975,2]
[388500112,1759219832600,-322.6107,0.00017975,2]
[388500113,1759219832610,-297.71832794,0.00017975,2]
[388500114,1759219832619,-474.52590314,0.00017979,2]
[388500115,1759219832629,-1245.93745718,0.0001803,2]
[388500116,1759219832639,-1584.0,0.00018226,2]
[388500117,1759219832648,-569.0,0.00018226,2]
[388500118,1759219832658,-765.36863774,0.00018337,2]
[388500119,1759219832667,-150.39,0.00018437,2]
[388500120,1759219832677,-152.77,0.00018437,2]
[388500121,1759219832687,-150.04,0.00018437,2]
[388500122,1759219832696,-150.0,0.00018476,7]
[388500123,1759219832706,-864.0,0.00018487,2]
[388500124,1759219832715,-2474.56,0.000185,7]
[388500125,1759219832725,-300.0,0.000187,2]
[388500126,1759219832734,-500.0,0.00018712,2]
[388500127,1759219832743,-150.0,0.00018715,2]
[388500128,1759219832753,-150.0,0.00018715,2]
[388500129,1759219832763,-150.00000001,0.00018715,2]
[388500130,1759219832772,-150.00000001,0.00018715,2]
[388500131,1759219832782,-150.0,0.00018715,2]
[388500132,1759219832791,-151.60730988,0.00018715,2]
[388500133,1759219832801,-150.0,0.00018715,2]
[388500134,1759219832813,-150.0,0.00018715,2]
[388500135,1759219832823,-150.0,0.00018715,2]
[388500136,1759219832832,-150.0,0.00018715,2]
[388500137,1759219832842,-150.0,0.00018715,2]
[388500138,1759219832867,-1000.0,0.00018986,2]
[388500139,1759219832879,-420.0,0.00018999,2]
[388500140,1759219832889,-1089.45,0.00019017,2]
[388500141,1759219832899,-309.82028122,0.00019177,2]
[388500142,1759219832909,-1048.43,0.00019178,2]
[388500143,1759219832918,-500.0,0.00019178,2]
[388500144,1759219832928,-993.27,0.00019178,2]
[388500145,1759219832937,-1508.63,0.00019178,2]
[388500146,1759219832947,-500.0,0.00019178,2]
[388500147,1759219832958,-1380.48,0.00019178,2]
[388500148,1759219832967,-930.08,0.00019178,2]
[388500149,1759219832977,-1759.56,0.00019178,2]
[388500150,1759219832987,-3600.84,0.00019178,2]
[388500151,1759219832996,-500.0,0.00019178,2]
[388500152,1759219833006,-692.57,0.00019178,2]
[388500153,1759219833015,-500.0,0.00019178,2]
[388500154,1759219833025,-528.23,0.00019178,2]
[388500155,1759219833035,-500.0,0.00019178,2]
[388500156,1759219833045,-500.0,0.00019178,2]
[388500157,1759219833055,-500.0,0.00019178,2]
[388500158,1759219833066,-500.0,0.00019178,2]
[388500159,1759219833076,-500.0,0.00019178,2]
[388500160,1759219833086,-500.0,0.00019178,2]
[388500161,1759219833097,-500.0,0.00019178,2]
[388500162,1759219833107,-500.0,0.00019178,2]
[388500163,1759219833117,-342.22903109,0.00019178,2]
[388500164,1759219833174,-157.77096891,0.00019178,2]
[388500165,1759219833185,-500.0,0.00019178,2]
[388500166,1759219833195,-503.0,0.00019178,2]
[388500167,1759219833205,-151.0,0.00019178,2]
[388500168,1759219833216,-4263.66,0.00019178,2]
[388500169,1759219833225,-1595.32491302,0.000192,2]
[388500170,1759219833235,-150.0,0.000193,2]
[388500171,1759219833253,-1576.702,0.00019333,2]
[388500172,1759219833264,-211.19972172,0.00019344,2]
[388500173,1759219833274,-334.5472959,0.00019344,2]
[388500174,1759219833286,-1300.0,0.00019417,2]
[388500175,1759219833296,-1048.43,0.00019452,2]
[388500176,1759219833307,-500.0,0.00019452,2]
[388500177,1759219833317,-993.27,0.00019452,2]
[388500178,1759219833327,-1508.63,0.00019452,2]
[388500179,1759219833337,-500.0,0.00019452,2]
[388500180,1759219833347,-1380.48,0.00019452,2]
[388500181,1759219833358,-930.08,0.00019452,2]
[388500182,1759219833368,-1353.87293891,0.00019452,2]
[388500185,1759219838168,-363.50002513,0.00019452,2]
[388500186,1759219838180,-42.18703596,0.00019452,2]
[388500187,1759219838190,-2690.1343976,0.00019452,2]
[388500188,1759219838202,-663.47545422,0.00019452,2]
[388500189,1759219838216,-247.23014818,0.00019452,2]
[388500190,1759219838225,-500.0,0.00019452,2]
[388500191,1759219838235,-692.57,0.00019452,2]
[388500192,1759219838244,-500.0,0.00019452,2]
[388500193,1759219838253,-528.23,0.00019452,2]
[388500194,1759219838263,-1000.0,0.000196,2]
[388500195,1759219838273,-300.0,0.000197,7]
[388500196,1759219838282,-1000.0,0.000197,2]
[388500197,1759219838291,-613.21311465,0.00019725,2]
[388500198,1759219838302,-1048.43,0.00019726,2]
[388500199,1759219838311,-500.0,0.00019726,2]
[388500200,1759219838320,-217.659343,0.00019726,2]
[388500201,1759219838404,-393.69097478,0.00019726,2]
[388500202,1759219838440,-381.91968222,0.00019726,2]
[388500203,1759219838449,-1508.63,0.00019726,2]
[388500204,1759219838460,-500.0,0.00019726,2]
[388500205,1759219838471,-520.18256611,0.00019726,2]
[388500206,1759219838483,-860.29743389,0.00019726,2]
[388500207,1759219838494,-930.08,0.00019726,2]
[388500208,1759219838506,-199.62256611,0.00019726,2]
[388500215,1759219842671,-4231.0,0.00017403,2]
[388500216,1759219842682,-1559.93743389,0.00019726,2]
[388500217,1759219842691,-3600.84,0.00019726,2]
[388500218,1759219842700,-500.0,0.00019726,2]
[388500219,1759219842709,-692.57,0.00019726,2]
[388500220,1759219842718,-500.0,0.00019726,2]
[388500221,1759219842727,-528.23,0.00019726,2]
[388500222,1759219842736,-156.587,0.00019726,2]
[388500223,1759219842746,-663.42931114,0.00019797,2]
[388500224,1759219842756,-600.0,0.000198,7]
[388500225,1759219842766,-151.30567901,0.00019809,2]
[388500226,1759219842775,-150.0,0.00019813,2]
[388500227,1759219842783,-175.48,0.00019841,2]
[388500228,1759219842793,-1000.0,0.00019865,2]
[388500229,1759219842802,-817.91654082,0.00019897,2]
[388500230,1759219842810,-614.3356493,0.00019897,2]
[388500231,1759219842820,-268.3822783,0.00019898,2]
[388500232,1759219842829,-187.07566307,0.00019898,2]
[388500233,1759219842839,-6372.12388256,0.00019898,2]
[388500234,1759219842848,-5000.0,0.00019899,2]
[388500235,1759219842858,-900.0,0.000199,7]
[388500236,1759219842867,-2207.6113,0.000199,2]
[388500237,1759219842876,-1000.0,0.00019903,2]
[388500238,1759219842886,-7184.139656,0.00019952,2]
[388500239,1759219842896,-543.0289505,0.00019952,2]
[388500240,1759219842905,-154.8171013,0.00019952,2]
[388500241,1759219842914,-1014.0819238,0.00019952,2]
[388500242,1759219842924,-159.99936,0.00019973,2]
[388500243,1759219842933,-160.15968,0.00019973,2]
[388500244,1759219842942,-159.983392,0.00019973,2]
[388500245,1759219842951,-500.0,0.00019973,2]
[388500246,1759219842960,-500.0,0.00019973,2]
[388500247,1759219842970,-500.0,0.00019973,2]
[388500248,1759219842980,-6372.12388248,0.00019989,2]
[388500249,1759219842989,-47725.3489101,0.00019997,2]
[388500251,1759219842998,-2771.64,0.00019997,2]
[388500253,1759219843008,-4023.83,0.00019997,2]
[388500255,1759219843018,-5452.97,0.00019997,2]
[388500257,1759219843028,-1069.67741325,0.00019997,2]
[388500259,1759219843040,-1283.7668548,0.00019997,2]
[388500261,1759219843051,-2914.71573195,0.00019997,2]
[388500262,1759219843060,-939.5408292,0.00019997,2]
[388500263,1759219843125,-1177.9091708,0.00019997,2]
[388500264,1759219843135,-2912.33,0.00019997,2]
[388500265,1759219843144,-383.40929079,0.00019997,2]
[388500271,1759219844929,-500.0,0.00019178,2]
[388500272,1759219844939,-500.0,0.00019178,2]
[388500273,1759219844948,-500.0,0.00019178,2]
[388500274,1759219844958,-500.0,0.00019178,2]
[388500275,1759219844967,-500.0,0.00019178,2]
[388500276,1759219844976,-500.0,0.00019178,2]
[388500277,1759219844985,-500.0,0.00019178,2]
[388500278,1759219844995,-1364.41070921,0.00019997,2]
[388500279,1759219845004,-1714.41,0.00019997,2]
[388500280,1759219845013,-573.69,0.00019997,2]
[388500281,1759219845023,-500.0,0.00019997,2]
[388500282,1759219845032,-2726.03,0.00019997,2]
[388500283,1759219845041,-500.0,0.00019997,2]
[388500285,1759219845050,-3578.34,0.00019997,2]
[388500286,1759219845059,-500.0,0.00019997,2]
[388500287,1759219845068,-1638.59,0.00019997,2]
[388500288,1759219845077,-500.0,0.00019997,2]
[388500289,1759219845087,-500.0,0.00019997,2]
[388500290,1759219845096,-5733.77,0.00019997,2]
[388500291,1759219845104,-500.0,0.00019997,2]
[388500292,1759219845114,-1082.74,0.00019997,2]
[388500293,1759219845123,-3598.92,0.00019997,2]
[388500294,1759219845134,-3395.89,0.00019997,2]
[388500295,1759219845143,-500.0,0.00019997,2]
[388500296,1759219845152,-500.0,0.00019997,2]
[388500297,1759219845162,-795.06,0.00019997,2]
[388500298,1759219845171,-18800.65,0.00019997,2]
[388500299,1759219845180,-500.0,0.00019997,2]
[388500300,1759219845190,-500.0,0.00019997,2]
[388500301,1759219845199,-1081.02,0.00019997,2]
[388500302,1759219845209,-3650.73,0.00019997,2]
[388500303,1759219845218,-500.0,0.00019997,2]
[388500304,1759219845228,-592.71,0.00019997,2]
[388500305,1759219845237,-2103.42,0.00019997,2]
[388500306,1759219845246,-500.0,0.00019997,2]
[388500307,1759219845256,-2222.58,0.00019997,2]
[388500308,1759219845265,-1394.53,0.00019997,2]
[388500309,1759219845274,-500.0,0.00019997,2]
[388500310,1759219845284,-500.0,0.00019997,2]
[388500311,1759219845293,-4753.49,0.00019997,2]
[388500312,1759219845302,-500.0,0.00019997,2]
[388500313,1759219845312,-2042.82,0.00019997,2]
[388500314,1759219845321,-4695.2,0.00019997,2]
[388500315,1759219845330,-500.0,0.00019997,2]
[388500316,1759219845339,-1641.8,0.00019997,2]
[388500317,1759219845348,-500.0,0.00019997,2]
[388500318,1759219845357,-15163.73,0.00019997,2]
[388500319,1759219845366,-833.2,0.00019997,2]
[388500320,1759219845376,-500.0,0.00019997,2]
[388500321,1759219845385,-500.0,0.00019997,2]
[388500322,1759219845393,-5203.0,0.00019997,2]
[388500323,1759219845403,-2110.38,0.00019997,2]
[388500324,1759219845412,-1240.36,0.00019997,2]
[388500325,1759219845421,-530.16,0.00019997,2]
[388500326,1759219845435,-500.0,0.00019997,2]
[388500327,1759219845444,-338.45355443,0.00019997,2]
[388500328,1759219845454,-500.0,0.00019997,2]
[388500329,1759219845463,-226.68549076,0.00019997,2]
[388500330,1759219845472,-500.0,0.00019997,2]
[388500331,1759219845482,-500.0,0.00019997,2]
[388500332,1759219845491,-500.0,0.00019997,2]
[388500333,1759219845500,-285.11531052,0.00019997,2]
[388500335,1759219845510,-259.53249037,0.00019997,2]
[388500336,1759219845519,-7496.37,0.00019997,2]
[388500337,1759219845527,-3187.78,0.00019997,2]
[388500338,1759219845536,-595.95,0.00019997,2]
[388500339,1759219845545,-500.0,0.00019997,2]
[388500340,1759219845555,-500.0,0.00019997,2]
[388500341,1759219845564,-500.19,0.00019998,2]
[388500342,1759219845573,-1091.37,0.00019998,2]
[388500343,1759219845582,-500.0,0.00019998,2]
[388500344,1759219845591,-500.0,0.00019998,2]
[388500345,1759219845601,-591.08,0.00019998,2]
[388500346,1759219845610,-500.0,0.00019998,2]
[388500347,1759219845620,-500.0,0.00019998,2]
[388500348,1759219845629,-1027.24,0.00019998,2]
[388500349,1759219845638,-945.81,0.00019998,2]
[388500350,1759219845647,-741.46,0.00019998,2]
[388500351,1759219845656,-501.11,0.00019998,2]
[388500352,1759219845665,-335.06313045,0.00019998,2]
[388500353,1759219845674,-1009.3,0.00019998,2]
[388500354,1759219845683,-500.0,0.00019998,2]
[388500355,1759219845693,-533.03,0.00019998,2]
[388500356,1759219845702,-636.41,0.00019998,2]
[388500357,1759219845711,-500.0,0.00019998,2]
[388500358,1759219845720,-500.0,0.00019998,2]
[388500359,1759219845729,-500.0,0.00019998,2]
[388500360,1759219845738,-318.3875763,0.00019998,2]
[388500361,1759219845747,-1440.76,0.00019998,2]
[388500362,1759219845756,-556.00651066,0.00019998,2]
[388500363,1759219845765,-500.0,0.00019998,2]
[388500364,1759219845774,-500.0,0.00019998,2]
[388500365,1759219845783,-500.0,0.00019998,2]
[388500366,1759219845792,-1369.59,0.00019998,2]
[388500367,1759219845802,-500.0,0.00019998,2]
[388500368,1759219845812,-500.0,0.00019998,2]
[388500369,1759219845821,-500.0,0.00019998,2]
[388500370,1759219845831,-500.0,0.00019998,2]
[388500372,1759219845839,-500.0,0.00019998,2]
[388500373,1759219845849,-500.0,0.00019998,2]
[388500374,1759219845858,-1618.94,0.00019998,2]
[388500375,1759219845867,-500.0,0.00019998,2]
[388500376,1759219845876,-500.0,0.00019998,2]
[388500377,1759219845885,-500.0,0.00019998,2]
[388500378,1759219845895,-500.0,0.00019998,2]
[388500379,1759219845903,-1019.61,0.00019998,2]
[388500380,1759219845912,-500.0,0.00019998,2]
[388500381,1759219845922,-500.0,0.00019998,2]
[388500382,1759219845931,-1166.98,0.00019998,2]
[388500383,1759219845940,-500.0,0.00019998,2]
[388500384,1759219845949,-500.0,0.00019998,2]
[388500385,1759219845958,-500.0,0.00019998,2]
[388500386,1759219845967,-500.0,0.00019998,2]
[388500387,1759219845981,-500.0,0.00019998,2]
[388500388,1759219845991,-500.0,0.00019998,2]
[388500389,1759219845999,-500.0,0.00019998,2]
[388500390,1759219846009,-500.0,0.00019998,2]
[388500391,1759219846018,-410.1094074,0.00019998,2]
[388500392,1759219846027,-500.0,0.00019998,2]
[388500393,1759219846036,-500.0,0.00019998,2]
[388500394,1759219846047,-3189.7,0.00019998,2]
[388500395,1759219846056,-500.0,0.00019998,2]
[388500397,1759219846065,-500.0,0.00019998,2]
[388500399,1759219846075,-500.0,0.00019998,2]
[388500400,1759219846084,-4905.78,0.00019998,2]
[388500402,1759219846094,-500.0,0.00019998,2]
[388500404,1759219846103,-500.0,0.00019998,2]
[388500406,1759219846112,-151.575417,0.00019998,2]
[388500408,1759219846121,-3809.15,0.00019998,2]
[388500409,1759219846131,-500.0,0.00019998,2]
[388500410,1759219846140,-7704.64,0.00019998,2]
[388500411,1759219846151,-5385.91,0.00019998,2]
[388500412,1759219846163,-512.1,0.00019998,2]
[388500413,1759219846173,-4928.78,0.00019998,2]
[388500414,1759219846182,-500.0,0.00019998,2]
[388500415,1759219846191,-6962.59,0.00019998,2]
[388500416,1759219846200,-500.0,0.00019998,2]
[388500417,1759219846209,-11090.09,0.00019998,2]
[388500418,1759219846219,-1688.93,0.00019998,2]
[388500419,1759219846228,-5045.15,0.00019998,2]
[388500420,1759219846237,-25814.07,0.00019998,2]
[388500421,1759219846246,-500.0,0.00019998,2]
[388500422,1759219846255,-5184.27,0.00019998,2]
[388500423,1759219846264,-4458.93,0.00019998,2]
[388500424,1759219846273,-4709.28,0.00019998,2]
[388500425,1759219846283,-500.0,0.00019998,2]
[388500426,1759219846292,-2776.82,0.00019998,2]
[388500427,1759219846301,-6585.57,0.00019998,2]
[388500428,1759219846310,-500.0,0.00019998,2]
[388500429,1759219846320,-500.0,0.00019998,2]
[388500430,1759219846329,-500.0,0.00019998,2]
[388500431,1759219846339,-500.0,0.00019998,2]
[388500432,1759219846348,-674.71,0.00019998,2]
[388500433,1759219846357,-1973.75,0.00019998,2]
[388500434,1759219846366,-1454.64,0.00019998,2]
[388500435,1759219846376,-6943.06,0.00019998,2]
[388500436,1759219846386,-1502.86,0.00019998,2]
[388500437,1759219846395,-8195.64,0.00019998,2]
[388500438,1759219846405,-601.55,0.00019998,2]
[388500439,1759219846414,-1126.45,0.00019998,2]
[388500440,1759219846428,-833.2,0.00019998,2]
[388500441,1759219846437,-833.2,0.00019998,2]
[388500442,1759219846447,-833.2,0.00019998,2]
[388500443,1759219846456,-1001.46,0.00019998,2]
[388500444,1759219846466,-4019.49,0.00019998,2]
[388500445,1759219846477,-936.6,0.00019998,2]
[388500446,1759219846487,-2470.2339042,0.00019999,2]
[388500447,1759219846497,-500.0,0.00019999,2]
[388500448,1759219846506,-500.0,0.00019999,2]
[388500449,1759219846515,-615.5,0.00019999,2]
[388500450,1759219846525,-500.0,0.00019999,2]
[388500451,1759219846535,-500.0,0.00019999,2]
[388500452,1759219846544,-3280.49,0.00019999,2]
[388500453,1759219846553,-773.05,0.00019999,2]
[388500454,1759219846562,-500.0,0.00019999,2]
[388500455,1759219846571,-500.0,0.00019999,2]
[388500456,1759219846580,-500.0,0.00019999,2]
[388500457,1759219846589,-2113.66,0.00019999,2]
[388500458,1759219846599,-794.61,0.00019999,2]
[388500459,1759219846608,-500.0,0.00019999,2]
[388500460,1759219846617,-543.99099903,0.00019999,2]
[388500461,1759219846627,-500.0,0.00019999,2]
[388500462,1759219846636,-500.0,0.00019999,2]
[388500463,1759219846645,-500.0,0.00019999,2]
[388500464,1759219846654,-1090.31,0.00019999,2]
[388500465,1759219846663,-526.88,0.00019999,2]
[388500466,1759219846672,-504.93,0.00019999,2]
[388500467,1759219846680,-580.61,0.00019999,2]
[388500468,1759219846689,-500.0,0.00019999,2]
[388500469,1759219846702,-500.0,0.00019999,2]
[388500470,1759219846712,-500.0,0.00019999,2]
[388500471,1759219846725,-575.72,0.00019999,2]
[388500472,1759219846734,-500.0,0.00019999,2]
[388500473,1759219846743,-500.0,0.00019999,2]
[388500474,1759219846752,-500.0,0.00019999,2]
[388500475,1759219846761,-1229.37,0.00019999,2]
[388500476,1759219846770,-500.0,0.00019999,2]
[388500477,1759219846779,-500.0,0.00019999,2]
[388500478,1759219846788,-500.0,0.00019999,2]
[388500479,1759219846797,-500.0,0.00019999,2]
[388500480,1759219846807,-6303.98,0.00019999,2]
[388500481,1759219846816,-500.0,0.00019999,2]
[388500482,1759219846825,-2080.64,0.00019999,2]
[388500483,1759219846835,-500.0,0.00019999,2]
[388500484,1759219846843,-3219.02,0.00019999,2]
[388500485,1759219846853,-500.0,0.00019999,2]
[388500486,1759219846862,-500.0,0.00019999,2]
[388500487,1759219846872,-500.0,0.00019999,2]
[388500488,1759219846881,-1263.2,0.00019999,2]
[388500489,1759219846890,-500.0,0.00019999,2]
[388500490,1759219846900,-500.0,0.00019999,2]
[388500491,1759219846909,-2202.0,0.00019999,2]
[388500492,1759219846921,-500.0,0.00019999,2]
[388500493,1759219846930,-519.17,0.00019999,2]
[388500494,1759219846940,-421.99751496,0.00019999,2]
[388500495,1759219846950,-500.0,0.00019999,2]
[388500496,1759219846959,-500.0,0.00019999,2]
[388500497,1759219846969,-500.0,0.00019999,2]
[388500498,1759219846979,-500.0,0.00019999,2]
[388500499,1759219846988,-500.0,0.00019999,2]
[388500500,1759219846998,-500.0,0.00019999,2]
[388500501,1759219847008,-1044.12,0.00019999,2]
[388500502,1759219847017,-500.0,0.00019999,2]
[388500503,1759219847026,-5570.87,0.00019999,2]
[388500504,1759219847036,-725.84,0.00019999,2]
[388500505,1759219847045,-707.95,0.00019999,2]
[388500506,1759219847054,-500.0,0.00019999,2]
[388500507,1759219847065,-401.3252995,0.00019999,2]
[388500508,1759219847074,-784.59,0.00019999,2]
[388500509,1759219847084,-1056.93,0.00019999,2]
[388500510,1759219847094,-500.0,0.00019999,2]
[388500511,1759219847103,-500.0,0.00019999,2]
[388500512,1759219847112,-2981.15,0.00019999,2]
[388500513,1759219847122,-500.0,0.00019999,2]
[388500514,1759219847130,-500.0,0.00019999,2]
[388500515,1759219847139,-5507.94364082,0.00019999,2]
[388500517,1759219848735,-1016.35383268,0.00019999,2]
[388500518,1759219848747,-1823.0225265,0.00019999,2]
[388500519,1759219848757,-192.61870056,0.00019999,2]
[388500520,1759219849490,-302.0,0.00019178,2]
[388500521,1759219849501,-198.0,0.00019178,2]
[388500522,1759219849511,-229.35164533,0.00019997,2]
[388500523,1759219849540,-270.64835467,0.00019997,2]
[388500524,1759219849549,-500.0,0.00019998,2]
[388500525,1759219849558,-307.38129944,0.00019999,2]
[388500526,1759219849567,-1221.1,0.00019999,2]
[388500527,1759219849576,-1185.06,0.00019999,2]
[388500528,1759219849585,-500.0,0.00019999,2]
[388500529,1759219849595,-500.0,0.00019999,2]
[388500530,1759219849604,-1282.31034589,0.00019999,2]
[388500531,1759219849615,-2366.82965411,0.00019999,2]
[388500532,1759219849625,-500.0,0.00019999,2]
[388500533,1759219849634,-500.0,0.00019999,2]
[388500534,1759219849643,-500.0,0.00019999,2]
[388500535,1759219849652,-500.0,0.00019999,2]
[388500536,1759219849662,-1322.37,0.00019999,2]
[388500537,1759219849672,-500.0,0.00019999,2]
[388500538,1759219849681,-886.9,0.00019999,2]
[388500539,1759219849690,-500.0,0.00019999,2]
[388500540,1759219849699,-500.0,0.00019999,2]
[388500541,1759219849708,-500.0,0.00019999,2]
[388500542,1759219849717,-500.0,0.00019999,2]
[388500543,1759219849727,-3241.6,0.00019999,2]
[388500544,1759219849736,-6165.54,0.00019999,2]
[388500545,1759219849746,-1012.95,0.00019999,2]
[388500546,1759219849755,-500.0,0.00019999,2]
[388500547,1759219849764,-500.0,0.00019999,2]
[388500548,1759219849774,-2957.46,0.00019999,2]
[388500549,1759219849783,-8231.49,0.00019999,2]
[388500550,1759219849792,-500.0,0.00019999,2]
[388500551,1759219849801,-402.53849129,0.00019999,2]
[388500552,1759219849810,-500.0,0.00019999,2]
[388500553,1759219849819,-806.73,0.00019999,2]
[388500554,1759219849828,-844.08,0.00019999,2]
[388500555,1759219849838,-400.90311623,0.00019999,2]
[388500556,1759219849847,-304.25885449,0.00019999,2]
[388500557,1759219849856,-616.57092766,0.00019999,2]
[388500558,1759219849865,-500.0,0.00019999,2]
[388500559,1759219849875,-1493.95,0.00019999,2]
[388500560,1759219849884,-9230.13,0.00019999,2]
[388500561,1759219849892,-3391.58,0.00019999,2]
[388500562,1759219849901,-500.0,0.00019999,2]
[388500563,1759219849910,-1333.52,0.00019999,2]
[388500564,1759219849919,-500.0,0.00019999,2]
[388500565,1759219849929,-500.0,0.00019999,2]
[388500566,1759219849938,-4820.93,0.00019999,2]
[388500567,1759219849947,-5041.65,0.00019999,2]
[388500569,1759219849956,-511.46,0.00019999,2]